[Event "Titled Tuesday Blitz October 31 Late 2023"]
[White "Souza Santos, Carlos Roberto"]
[Black "Rodrigues, Bruno Morado"]
[WhiteFideId "2150603"]
[BlackFideId "2115654"]
[WhiteElo "1915"]
[BlackElo "2410"]
[Result "0-1"]
[Round "2"]
[TimeControl "180+1"]
[Date "2023.10.31"]
[WhiteClock "0:00:00"]
[BlackClock "0:00:25"]
[Board "171"]

1. e4 {[%clk 0:02:55]}  c5 {[%clk 0:02:58]} 2. Nf3 {[%clk 0:02:56]}  Nc6 {[%clk 0:02:55]} 3. d3 {[%clk 0:02:55]}  g6 {[%clk 0:02:55]} 4. g3 {[%clk 0:02:56]}  Bg7 {[%clk 0:02:55]} 5. Bg2 {[%clk 0:02:57]}  e6 {[%clk 0:02:56]} 6. O-O {[%clk 0:02:56]}  Nge7 {[%clk 0:02:56]} 7. c3 {[%clk 0:02:55]}  O-O {[%clk 0:02:57]} 8. Nbd2 {[%clk 0:02:53]}  d5 {[%clk 0:02:56]} 9. Re1 {[%clk 0:02:53]}  dxe4 {[%clk 0:02:56]} 10. dxe4 {[%clk 0:02:51]}  b6 {[%clk 0:02:56]} 11. Qe2 {[%clk 0:02:51]}  Bb7 {[%clk 0:02:55]} 12. Nf1 {[%clk 0:02:50]}  Qc8 {[%clk 0:02:53]} 13. h4 {[%clk 0:02:32]}  Ba6 {[%clk 0:02:40]} 14. Qc2 {[%clk 0:02:30]}  Rd8 {[%clk 0:02:40]} 15. Bf4 {[%clk 0:02:25]}  Bd3 {[%clk 0:02:33]} 16. Qc1 {[%clk 0:02:20]}  b5 {[%clk 0:02:21]} 17. N1h2 {[%clk 0:02:06]}  h5 {[%clk 0:02:13]} 18. Ng5 {[%clk 0:02:03]}  b4 {[%clk 0:02:05]} 19. Bh3 {[%clk 0:01:40]}  Qa6 {[%clk 0:01:47]} 20. Nhf3 {[%clk 0:01:28]}  bxc3 {[%clk 0:01:38]} 21. bxc3 {[%clk 0:01:29]}  Qc4 {[%clk 0:01:38]} 22. Bd2 {[%clk 0:01:27]}  Rab8 {[%clk 0:01:19]} 23. Bf1 {[%clk 0:01:12]}  Bxf1 {[%clk 0:01:12]} 24. Rxf1 {[%clk 0:01:13]}  f6 {[%clk 0:01:13]} 25. Nh3 {[%clk 0:01:10]}  Qxe4 {[%clk 0:01:12]} 26. Nh2 {[%clk 0:01:06]}  Ne5 {[%clk 0:01:05]} 27. Re1 {[%clk 0:00:59]}  Qf5 {[%clk 0:01:00]} 28. Kg2 {[%clk 0:00:57]}  Nd3 {[%clk 0:01:00]} 29. Qa3 {[%clk 0:00:50]}  Nxe1+ {[%clk 0:00:54]} 30. Bxe1 {[%clk 0:00:51]}  Nc6 {[%clk 0:00:43]} 31. Nf3 {[%clk 0:00:47]}  Qe4 {[%clk 0:00:39]} 32. Bd2 {[%clk 0:00:44]}  Rxd2 {[%clk 0:00:36]} 33. Re1 {[%clk 0:00:44]}  Qd5 {[%clk 0:00:19]} 34. Nf4 {[%clk 0:00:44]}  Qd7 {[%clk 0:00:16]} 35. Qxc5 {[%clk 0:00:40]}  Rd6 {[%clk 0:00:16]} 36. Qc4 {[%clk 0:00:38]}  Kh7 {[%clk 0:00:15]} 37. Qe2 {[%clk 0:00:37]}  e5 {[%clk 0:00:15]} 38. Nh3 {[%clk 0:00:35]}  Rd3 {[%clk 0:00:14]} 39. Nfg5+ {[%clk 0:00:35]}  fxg5 {[%clk 0:00:13]} 40. Nxg5+ {[%clk 0:00:36]}  Kh8 {[%clk 0:00:13]} 41. Qe4 {[%clk 0:00:36]}  Qd5 {[%clk 0:00:13]} 42. Qxd5 {[%clk 0:00:36]}  Rxd5 {[%clk 0:00:14]} 43. Ne4 {[%clk 0:00:36]}  Rb2 {[%clk 0:00:14]} 44. Rf1 {[%clk 0:00:36]}  Rxa2 {[%clk 0:00:13]} 45. Kf3 {[%clk 0:00:36]}  Rd3+ {[%clk 0:00:13]} 46. Kg2 {[%clk 0:00:36]}  Re2 {[%clk 0:00:13]} 47. Ng5 {[%clk 0:00:37]}  Rxc3 {[%clk 0:00:13]} 48. Nh3 {[%clk 0:00:37]}  Rcc2 {[%clk 0:00:13]} 49. Ng5 {[%clk 0:00:38]}  Nd4 {[%clk 0:00:13]} 50. Nh3 {[%clk 0:00:38]}  Nf5 {[%clk 0:00:13]} 51. Ng5 {[%clk 0:00:38]}  Ne3+ {[%clk 0:00:13]} 52. Kf3 {[%clk 0:00:38]}  Nxf1 {[%clk 0:00:14]} 53. Ne4 {[%clk 0:00:37]}  Rxf2+ {[%clk 0:00:15]} 54. Nxf2 {[%clk 0:00:37]}  Rxf2+ {[%clk 0:00:16]} 55. Kxf2 {[%clk 0:00:38]}  Nxg3 {[%clk 0:00:17]} 56. Kxg3 {[%clk 0:00:38]}  a5 {[%clk 0:00:18]} 57. Kf3 {[%clk 0:00:39]}  a4 {[%clk 0:00:19]} 58. Ke4 {[%clk 0:00:39]}  a3 {[%clk 0:00:20]} 59. Kd5 {[%clk 0:00:40]}  a2 {[%clk 0:00:20]} 60. Ke6 {[%clk 0:00:41]}  a1=Q {[%clk 0:00:21]} 61. Kf7 {[%clk 0:00:42]}  Qd4 {[%clk 0:00:22]} 62. Kxg6 {[%clk 0:00:43]}  Qxh4 {[%clk 0:00:23]} 63. Kf7 {[%clk 0:00:44]}  Qf6+ {[%clk 0:00:22]} 64. Ke8 {[%clk 0:00:44]}  e4 {[%clk 0:00:23]} 65. Kd7 {[%clk 0:00:45]}  e3 {[%clk 0:00:24]} 66. Kc7 {[%clk 0:00:45]}  e2 {[%clk 0:00:25]} 67. Kc8 {[%clk 0:00:46]}  e1=Q {[%clk 0:00:26]} 68. Kb7 {[%clk 0:00:00]}  Qfc3 {[%clk 0:00:25]} 0-1


[Site "https://www.chess.com"]

[Event "Titled Tuesday Blitz October 31 Late 2023"]
[White "Nihal Sarin"]
[Black "Schnaider, Ilan"]
[WhiteFideId "25092340"]
[BlackFideId "169013"]
[WhiteElo "3129"]
[BlackElo "2740"]
[Result "1-0"]
[Round "3"]
[TimeControl "180+1"]
[Date "2023.10.31"]
[WhiteClock "0:01:47"]
[BlackClock "0:00:39"]
[Board "1"]

1. d4 {[%clk 0:03:00]}  Nf6 {[%clk 0:02:59]} 2. Nf3 {[%clk 0:03:00]}  d5 {[%clk 0:02:58]} 3. c4 {[%clk 0:03:01]}  c6 {[%clk 0:02:57]} 4. Nbd2 {[%clk 0:02:56]}  e6 {[%clk 0:02:51]} 5. g3 {[%clk 0:02:48]}  Bd6 {[%clk 0:02:50]} 6. Bg2 {[%clk 0:02:48]}  O-O {[%clk 0:02:50]} 7. O-O {[%clk 0:02:47]}  Ne4 {[%clk 0:02:51]} 8. Nxe4 {[%clk 0:02:40]}  dxe4 {[%clk 0:02:52]} 9. Ng5 {[%clk 0:02:40]}  f5 {[%clk 0:02:42]} 10. f3 {[%clk 0:02:39]}  h6 {[%clk 0:02:37]} 11. Nh3 {[%clk 0:02:37]}  exf3 {[%clk 0:02:37]} 12. exf3 {[%clk 0:02:38]}  e5 {[%clk 0:02:36]} 13. c5 {[%clk 0:02:35]}  Be7 {[%clk 0:02:29]} 14. Qb3+ {[%clk 0:02:33]}  Kh8 {[%clk 0:02:21]} 15. dxe5 {[%clk 0:02:33]}  Bxc5+ {[%clk 0:02:20]} 16. Kh1 {[%clk 0:02:33]}  Qe8 {[%clk 0:01:16]} 17. f4 {[%clk 0:02:25]}  Bb6 {[%clk 0:01:13]} 18. a4 {[%clk 0:02:15]}  Be6 {[%clk 0:01:13]} 19. Qc3 {[%clk 0:02:16]}  a5 {[%clk 0:01:07]} 20. Be3 {[%clk 0:02:17]}  Bxe3 {[%clk 0:01:05]} 21. Qxe3 {[%clk 0:02:18]}  Na6 {[%clk 0:01:06]} 22. Rad1 {[%clk 0:02:14]}  Nb4 {[%clk 0:01:05]} 23. Rd6 {[%clk 0:02:14]}  Bd5 {[%clk 0:01:04]} 24. Nf2 {[%clk 0:01:57]}  Rd8 {[%clk 0:01:01]} 25. Rxd8 {[%clk 0:01:55]}  Qxd8 {[%clk 0:01:02]} 26. Rd1 {[%clk 0:01:56]}  Bxg2+ {[%clk 0:00:50]} 27. Kxg2 {[%clk 0:01:57]}  Nd5 {[%clk 0:00:51]} 28. Qc5 {[%clk 0:01:49]}  Re8 {[%clk 0:00:51]} 29. Rd3 {[%clk 0:01:47]}  Qc7 {[%clk 0:00:47]} 30. Rxd5 {[%clk 0:01:46]}  b6 {[%clk 0:00:42]} 31. Qc2 {[%clk 0:01:46]}  Qb7 {[%clk 0:00:42]} 32. Rd6 {[%clk 0:01:46]}  c5+ {[%clk 0:00:39]} 33. Kg1 {[%clk 0:01:47]} 1-0


[Site "https://www.chess.com"]

[Event "Titled Tuesday Blitz October 31 Late 2023"]
[White "Korchmar, Vasiliy"]
[Black "Martinez Alcantara, Jose Eduardo"]
[WhiteFideId "24131750"]
[BlackFideId "3805662"]
[WhiteElo "2739"]
[BlackElo "3119"]
[Result "0-1"]
[Round "3"]
[TimeControl "180+1"]
[Date "2023.10.31"]
[WhiteClock "0:00:00"]
[BlackClock "0:01:24"]
[Board "2"]

1. e4 {[%clk 0:03:00]}  c5 {[%clk 0:02:57]} 2. d4 {[%clk 0:03:01]}  cxd4 {[%clk 0:02:57]} 3. Qxd4 {[%clk 0:03:02]}  Nc6 {[%clk 0:02:57]} 4. Qd3 {[%clk 0:03:02]}  d6 {[%clk 0:02:57]} 5. Nc3 {[%clk 0:03:03]}  Nf6 {[%clk 0:02:57]} 6. Nf3 {[%clk 0:03:04]}  e6 {[%clk 0:02:58]} 7. Bf4 {[%clk 0:03:03]}  e5 {[%clk 0:02:58]} 8. Bg5 {[%clk 0:03:03]}  Be7 {[%clk 0:02:58]} 9. O-O-O {[%clk 0:03:03]}  Be6 {[%clk 0:02:36]} 10. Bxf6 {[%clk 0:03:00]}  gxf6 {[%clk 0:02:36]} 11. Nd5 {[%clk 0:02:56]}  Rc8 {[%clk 0:02:33]} 12. Kb1 {[%clk 0:02:52]}  Qa5 {[%clk 0:02:16]} 13. a3 {[%clk 0:02:47]}  Rg8 {[%clk 0:02:07]} 14. Nxe7 {[%clk 0:02:26]}  Nxe7 {[%clk 0:02:08]} 15. Qxd6 {[%clk 0:02:26]}  Rg4 {[%clk 0:02:03]} 16. Bd3 {[%clk 0:02:08]}  Rxg2 {[%clk 0:01:57]} 17. Rhg1 {[%clk 0:01:35]}  Rxf2 {[%clk 0:01:50]} 18. Rg7 {[%clk 0:01:26]}  Qc5 {[%clk 0:01:31]} 19. Qxc5 {[%clk 0:00:25]}  Rxc5 {[%clk 0:01:32]} 20. Rxh7 {[%clk 0:00:23]}  Ng6 {[%clk 0:01:33]} 21. Rf1 {[%clk 0:00:09]}  Rcxc2 {[%clk 0:01:26]} 22. Rxf2 {[%clk 0:00:02]}  Rxf2 {[%clk 0:01:26]} 23. Bb5+ {[%clk 0:00:02]}  Kf8 {[%clk 0:01:25]} 24. Ne1 {[%clk 0:00:02]}  Kg8 {[%clk 0:01:23]} 25. Rh6 {[%clk 0:00:01]}  Kg7 {[%clk 0:01:23]} 26. Rh5 {[%clk 0:00:00]}  Bg4 {[%clk 0:01:24]} 0-1


[Site "https://www.chess.com"]

[Event "Titled Tuesday Blitz October 31 Late 2023"]
[White "Andreikin, Dmitry"]
[Black "Harikrishnan.A.Ra"]
[WhiteFideId "4158814"]
[BlackFideId "5081483"]
[WhiteElo "3109"]
[BlackElo "2738"]
[Result "1-0"]
[Round "3"]
[TimeControl "180+1"]
[Date "2023.10.31"]
[WhiteClock "0:01:27"]
[BlackClock "0:00:05"]
[Board "3"]

1. e4 {[%clk 0:03:00]}  e5 {[%clk 0:02:56]} 2. Nf3 {[%clk 0:03:00]}  Nf6 {[%clk 0:02:56]} 3. Nxe5 {[%clk 0:02:59]}  d6 {[%clk 0:02:56]} 4. Nf3 {[%clk 0:03:00]}  Nxe4 {[%clk 0:02:57]} 5. Bd3 {[%clk 0:03:00]}  d5 {[%clk 0:02:52]} 6. O-O {[%clk 0:03:00]}  Bd6 {[%clk 0:02:53]} 7. Nc3 {[%clk 0:02:56]}  Nxc3 {[%clk 0:02:46]} 8. dxc3 {[%clk 0:02:56]}  O-O {[%clk 0:02:45]} 9. Re1 {[%clk 0:02:55]}  h6 {[%clk 0:02:37]} 10. Be3 {[%clk 0:02:48]}  c6 {[%clk 0:02:34]} 11. Qd2 {[%clk 0:02:48]}  Qf6 {[%clk 0:02:12]} 12. Bd4 {[%clk 0:02:47]}  Qf4 {[%clk 0:02:08]} 13. Re3 {[%clk 0:02:40]}  Be6 {[%clk 0:01:47]} 14. g3 {[%clk 0:02:16]}  Qg4 {[%clk 0:01:47]} 15. Ne5 {[%clk 0:02:14]}  Bxe5 {[%clk 0:01:39]} 16. Bxe5 {[%clk 0:02:12]}  Nd7 {[%clk 0:01:39]} 17. Rae1 {[%clk 0:02:12]}  Nxe5 {[%clk 0:01:31]} 18. Rxe5 {[%clk 0:02:13]}  Rad8 {[%clk 0:01:20]} 19. f4 {[%clk 0:02:04]}  c5 {[%clk 0:01:04]} 20. Qf2 {[%clk 0:02:02]}  b6 {[%clk 0:00:48]} 21. Be2 {[%clk 0:01:57]}  Qg6 {[%clk 0:00:48]} 22. f5 {[%clk 0:01:51]}  Qf6 {[%clk 0:00:47]} 23. fxe6 {[%clk 0:01:50]}  Qxe5 {[%clk 0:00:48]} 24. Bb5 {[%clk 0:01:45]}  fxe6 {[%clk 0:00:32]} 25. Rxe5 {[%clk 0:01:43]}  Rxf2 {[%clk 0:00:32]} 26. Kxf2 {[%clk 0:01:44]}  Kf7 {[%clk 0:00:33]} 27. c4 {[%clk 0:01:43]}  Kf6 {[%clk 0:00:28]} 28. Re3 {[%clk 0:01:43]}  d4 {[%clk 0:00:27]} 29. Ra3 {[%clk 0:01:42]}  a5 {[%clk 0:00:27]} 30. Rf3+ {[%clk 0:01:42]}  Ke7 {[%clk 0:00:27]} 31. Bc6 {[%clk 0:01:42]}  Kd6 {[%clk 0:00:22]} 32. Be4 {[%clk 0:01:42]}  Ke5 {[%clk 0:00:21]} 33. Bd3 {[%clk 0:01:42]}  Rd7 {[%clk 0:00:20]} 34. Bg6 {[%clk 0:01:42]}  Rb7 {[%clk 0:00:18]} 35. Rf7 {[%clk 0:01:40]}  Rb8 {[%clk 0:00:18]} 36. a4 {[%clk 0:01:36]}  Rd8 {[%clk 0:00:18]} 37. Kf3 {[%clk 0:01:35]}  Rg8 {[%clk 0:00:15]} 38. h4 {[%clk 0:01:35]}  Rd8 {[%clk 0:00:15]} 39. h5 {[%clk 0:01:35]}  Rb8 {[%clk 0:00:13]} 40. Rxg7 {[%clk 0:01:34]}  Kf6 {[%clk 0:00:13]} 41. Rf7+ {[%clk 0:01:34]}  Kg5 {[%clk 0:00:14]} 42. Ke4 {[%clk 0:01:34]}  Rd8 {[%clk 0:00:13]} 43. Ke5 {[%clk 0:01:34]}  Kg4 {[%clk 0:00:12]} 44. Kxe6 {[%clk 0:01:33]}  Kxg3 {[%clk 0:00:13]} 45. Rh7 {[%clk 0:01:33]}  Kf4 {[%clk 0:00:09]} 46. Rxh6 {[%clk 0:01:32]}  Kg5 {[%clk 0:00:10]} 47. Rh7 {[%clk 0:01:33]}  Rf8 {[%clk 0:00:11]} 48. Rf7 {[%clk 0:01:33]}  Re8+ {[%clk 0:00:11]} 49. Kd5 {[%clk 0:01:33]}  Re1 {[%clk 0:00:10]} 50. Rf5+ {[%clk 0:01:31]}  Kh6 {[%clk 0:00:10]} 51. Re5 {[%clk 0:01:30]}  Rb1 {[%clk 0:00:09]} 52. b3 {[%clk 0:01:30]}  Rg1 {[%clk 0:00:07]} 53. Kc6 {[%clk 0:01:30]}  Kg7 {[%clk 0:00:05]} 54. Kxb6 {[%clk 0:01:30]}  Kf6 {[%clk 0:00:06]} 55. Rxc5 {[%clk 0:01:30]}  Rg3 {[%clk 0:00:05]} 56. Kxa5 {[%clk 0:01:30]}  Kg7 {[%clk 0:00:03]} 57. Kb4 {[%clk 0:01:30]}  Kh6 {[%clk 0:00:04]} 58. Bd3 {[%clk 0:01:29]}  Rg1 {[%clk 0:00:05]} 59. a5 {[%clk 0:01:28]}  Rg7 {[%clk 0:00:04]} 60. a6 {[%clk 0:01:29]}  Ra7 {[%clk 0:00:04]} 61. Kb5 {[%clk 0:01:29]}  Ra8 {[%clk 0:00:04]} 62. Kb6 {[%clk 0:01:29]}  Rb8+ {[%clk 0:00:05]} 63. Kc7 {[%clk 0:01:29]}  Ra8 {[%clk 0:00:06]} 64. Kb7 {[%clk 0:01:29]}  Rf8 {[%clk 0:00:06]} 65. a7 {[%clk 0:01:28]}  Rf7+ {[%clk 0:00:07]} 66. Rc7 {[%clk 0:01:28]}  Rf8 {[%clk 0:00:07]} 67. a8=Q {[%clk 0:01:28]}  Rg8 {[%clk 0:00:05]} 68. Qxg8 {[%clk 0:01:26]}  Kxh5 {[%clk 0:00:05]} 69. Rh7# {[%clk 0:01:27]} 1-0


[Site "https://www.chess.com"]

[Event "Titled Tuesday Blitz October 31 Late 2023"]
[White "Pranav, V"]
[Black "Maximov, Dmitry"]
[WhiteFideId "25060783"]
[BlackFideId "14105659"]
[WhiteElo "3047"]
[BlackElo "2729"]
[Result "1-0"]
[Round "3"]
[TimeControl "180+1"]
[Date "2023.10.31"]
[WhiteClock "0:00:10"]
[BlackClock "0:00:05"]
[Board "5"]

1. e4 {[%clk 0:03:00]}  c5 {[%clk 0:03:00]} 2. Nf3 {[%clk 0:03:01]}  d6 {[%clk 0:03:00]} 3. d4 {[%clk 0:03:01]}  cxd4 {[%clk 0:03:01]} 4. Nxd4 {[%clk 0:03:02]}  Nf6 {[%clk 0:03:01]} 5. Nc3 {[%clk 0:03:02]}  a6 {[%clk 0:03:02]} 6. Bg5 {[%clk 0:03:03]}  Nbd7 {[%clk 0:03:01]} 7. Be3 {[%clk 0:03:02]}  Nc5 {[%clk 0:02:58]} 8. f3 {[%clk 0:02:59]}  e6 {[%clk 0:02:55]} 9. g4 {[%clk 0:02:58]}  Be7 {[%clk 0:02:55]} 10. h4 {[%clk 0:02:58]}  Nfd7 {[%clk 0:02:53]} 11. b4 {[%clk 0:02:50]}  Bxh4+ {[%clk 0:02:53]} 12. Rxh4 {[%clk 0:02:45]}  Qxh4+ {[%clk 0:02:52]} 13. Bf2 {[%clk 0:02:45]}  Qf6 {[%clk 0:02:48]} 14. g5 {[%clk 0:02:26]}  Qxg5 {[%clk 0:02:41]} 15. bxc5 {[%clk 0:02:25]}  dxc5 {[%clk 0:02:35]} 16. Nb3 {[%clk 0:02:21]}  O-O {[%clk 0:02:25]} 17. Qd6 {[%clk 0:02:14]}  Qf6 {[%clk 0:02:14]} 18. Na4 {[%clk 0:02:02]}  c4 {[%clk 0:02:09]} 19. Nd4 {[%clk 0:01:53]}  b5 {[%clk 0:02:06]} 20. Nb6 {[%clk 0:01:49]}  Nxb6 {[%clk 0:02:02]} 21. Qxb6 {[%clk 0:01:50]}  Qf4 {[%clk 0:01:39]} 22. Be2 {[%clk 0:01:45]}  Rb8 {[%clk 0:01:30]} 23. Qc5 {[%clk 0:01:43]}  Bb7 {[%clk 0:01:28]} 24. Qh5 {[%clk 0:01:37]}  Rfd8 {[%clk 0:01:21]} 25. Qh3 {[%clk 0:01:35]}  g6 {[%clk 0:01:13]} 26. Rd1 {[%clk 0:01:28]}  e5 {[%clk 0:01:08]} 27. Bg3 {[%clk 0:01:14]}  Qg5 {[%clk 0:00:56]} 28. Ne6 {[%clk 0:01:08]}  fxe6 {[%clk 0:00:43]} 29. Qxe6+ {[%clk 0:00:59]}  Kf8 {[%clk 0:00:43]} 30. Rxd8+ {[%clk 0:00:44]}  Rxd8 {[%clk 0:00:43]} 31. Kf2 {[%clk 0:00:35]}  Qe7 {[%clk 0:00:37]} 32. Qb6 {[%clk 0:00:34]}  Rd6 {[%clk 0:00:36]} 33. Qe3 {[%clk 0:00:33]}  Re6 {[%clk 0:00:35]} 34. Bf1 {[%clk 0:00:32]}  Kg7 {[%clk 0:00:33]} 35. Bh3 {[%clk 0:00:30]}  Rd6 {[%clk 0:00:33]} 36. Qc3 {[%clk 0:00:24]}  Rd4 {[%clk 0:00:32]} 37. Qe3 {[%clk 0:00:22]}  Qc5 {[%clk 0:00:30]} 38. Ke2 {[%clk 0:00:22]}  h6 {[%clk 0:00:30]} 39. c3 {[%clk 0:00:21]}  Rxe4 {[%clk 0:00:22]} 40. fxe4 {[%clk 0:00:20]}  Qxe3+ {[%clk 0:00:19]} 41. Kxe3 {[%clk 0:00:21]}  Kf6 {[%clk 0:00:20]} 42. Bd7 {[%clk 0:00:18]}  h5 {[%clk 0:00:19]} 43. Be8 {[%clk 0:00:17]}  Bc8 {[%clk 0:00:17]} 44. Bf2 {[%clk 0:00:13]}  Bg4 {[%clk 0:00:16]} 45. Be1 {[%clk 0:00:12]}  g5 {[%clk 0:00:16]} 46. a4 {[%clk 0:00:11]}  bxa4 {[%clk 0:00:15]} 47. Bxa4 {[%clk 0:00:12]}  h4 {[%clk 0:00:15]} 48. Bc6 {[%clk 0:00:11]}  Bh3 {[%clk 0:00:12]} 49. Bd5 {[%clk 0:00:09]}  Bf1 {[%clk 0:00:12]} 50. Bf2 {[%clk 0:00:08]}  a5 {[%clk 0:00:11]} 51. Bc6 {[%clk 0:00:08]}  Kg6 {[%clk 0:00:10]} 52. Be8+ {[%clk 0:00:08]}  Kf6 {[%clk 0:00:09]} 53. Kf3 {[%clk 0:00:08]}  Bd3 {[%clk 0:00:08]} 54. Bb5 {[%clk 0:00:09]}  Kg6 {[%clk 0:00:07]} 55. Bb6 {[%clk 0:00:08]}  Kh5 {[%clk 0:00:05]} 56. Be8+ {[%clk 0:00:08]}  Kh6 {[%clk 0:00:06]} 57. Bxa5 {[%clk 0:00:08]}  h3 {[%clk 0:00:06]} 58. Bc6 {[%clk 0:00:07]}  h2 {[%clk 0:00:06]} 59. Kg2 {[%clk 0:00:07]}  g4 {[%clk 0:00:06]} 60. Kxh2 {[%clk 0:00:08]}  Kg5 {[%clk 0:00:07]} 61. Kg3 {[%clk 0:00:08]}  Be2 {[%clk 0:00:06]} 62. Bd8+ {[%clk 0:00:08]}  Kg6 {[%clk 0:00:06]} 63. Bd7 {[%clk 0:00:08]}  Bf3 {[%clk 0:00:04]} 64. Bf5+ {[%clk 0:00:08]}  Kf7 {[%clk 0:00:05]} 65. Kf2 {[%clk 0:00:07]}  Ke8 {[%clk 0:00:05]} 66. Bc7 {[%clk 0:00:07]}  Ke7 {[%clk 0:00:05]} 67. Bxe5 {[%clk 0:00:07]}  Kf7 {[%clk 0:00:06]} 68. Ke3 {[%clk 0:00:08]}  Ke7 {[%clk 0:00:06]} 69. Bg3 {[%clk 0:00:08]}  Kf7 {[%clk 0:00:06]} 70. e5 {[%clk 0:00:09]}  Ke7 {[%clk 0:00:06]} 71. Bh4+ {[%clk 0:00:09]}  Kf7 {[%clk 0:00:07]} 72. e6+ {[%clk 0:00:09]}  Kf8 {[%clk 0:00:07]} 73. e7+ {[%clk 0:00:10]}  Kf7 {[%clk 0:00:05]} 74. Bg6+ {[%clk 0:00:10]} 1-0


[Site "https://www.chess.com"]

[Event "Titled Tuesday Blitz October 31 Late 2023"]
[White "Djokic, Mihailo"]
[Black "Terry, Renato"]
[WhiteFideId "976440"]
[BlackFideId "3803457"]
[WhiteElo "2724"]
[BlackElo "3025"]
[Result "1-0"]
[Round "3"]
[TimeControl "180+1"]
[Date "2023.10.31"]
[WhiteClock "0:00:06"]
[BlackClock "0:00:02"]
[Board "6"]

1. e4 {[%clk 0:03:00]}  e6 {[%clk 0:03:00]} 2. d4 {[%clk 0:03:00]}  d5 {[%clk 0:03:00]} 3. Nc3 {[%clk 0:03:01]}  Nf6 {[%clk 0:03:00]} 4. Bg5 {[%clk 0:03:00]}  Bb4 {[%clk 0:03:00]} 5. e5 {[%clk 0:03:00]}  h6 {[%clk 0:03:00]} 6. Bh4 {[%clk 0:03:00]}  g5 {[%clk 0:02:56]} 7. Bg3 {[%clk 0:03:00]}  Ne4 {[%clk 0:02:55]} 8. Ne2 {[%clk 0:03:01]}  c5 {[%clk 0:02:38]} 9. a3 {[%clk 0:03:00]}  Nxc3 {[%clk 0:02:34]} 10. Nxc3 {[%clk 0:03:01]}  cxd4 {[%clk 0:02:31]} 11. axb4 {[%clk 0:02:36]}  dxc3 {[%clk 0:02:32]} 12. bxc3 {[%clk 0:02:37]}  Qc7 {[%clk 0:02:28]} 13. Qd2 {[%clk 0:02:36]}  Nc6 {[%clk 0:02:26]} 14. h4 {[%clk 0:02:31]}  g4 {[%clk 0:02:22]} 15. Be2 {[%clk 0:02:26]}  h5 {[%clk 0:02:16]} 16. O-O {[%clk 0:02:21]}  Ne7 {[%clk 0:02:16]} 17. Bd3 {[%clk 0:02:19]}  Qb6 {[%clk 0:01:52]} 18. Kh2 {[%clk 0:02:16]}  Bd7 {[%clk 0:01:41]} 19. f3 {[%clk 0:01:57]}  Bb5 {[%clk 0:01:30]} 20. fxg4 {[%clk 0:01:56]}  hxg4 {[%clk 0:01:27]} 21. Bxb5+ {[%clk 0:01:47]}  Qxb5 {[%clk 0:01:27]} 22. Rf4 {[%clk 0:01:41]}  Nf5 {[%clk 0:01:21]} 23. Rxg4 {[%clk 0:01:37]}  a6 {[%clk 0:01:16]} 24. c4 {[%clk 0:01:29]}  dxc4 {[%clk 0:01:13]} 25. Ra5 {[%clk 0:01:29]}  Qd7 {[%clk 0:01:11]} 26. Qc3 {[%clk 0:01:20]}  b5 {[%clk 0:01:07]} 27. Qa1 {[%clk 0:01:17]}  Qc6 {[%clk 0:01:00]} 28. Ra3 {[%clk 0:01:11]}  Kd7 {[%clk 0:00:49]} 29. Bf2 {[%clk 0:01:10]}  Kc7 {[%clk 0:00:46]} 30. g3 {[%clk 0:00:58]}  Kb7 {[%clk 0:00:44]} 31. Qe1 {[%clk 0:00:55]}  Rad8 {[%clk 0:00:41]} 32. Ra1 {[%clk 0:00:41]}  Qf3 {[%clk 0:00:15]} 33. Rf4 {[%clk 0:00:40]}  Qc6 {[%clk 0:00:03]} 34. Qe2 {[%clk 0:00:41]}  Rd7 {[%clk 0:00:03]} 35. Rd1 {[%clk 0:00:32]}  Kc8 {[%clk 0:00:02]} 36. Rxd7 {[%clk 0:00:32]}  Kxd7 {[%clk 0:00:03]} 37. h5 {[%clk 0:00:29]}  Kc8 {[%clk 0:00:02]} 38. g4 {[%clk 0:00:29]}  Nh6 {[%clk 0:00:01]} 39. Qe3 {[%clk 0:00:23]}  Qd5 {[%clk 0:00:01]} 40. Qc5+ {[%clk 0:00:21]}  Qxc5 {[%clk 0:00:02]} 41. Bxc5 {[%clk 0:00:22]}  Kd7 {[%clk 0:00:02]} 42. Kg3 {[%clk 0:00:22]}  Rg8 {[%clk 0:00:02]} 43. Kh4 {[%clk 0:00:20]}  Kc6 {[%clk 0:00:01]} 44. Be3 {[%clk 0:00:20]}  Kd5 {[%clk 0:00:01]} 45. c3 {[%clk 0:00:13]}  Kxe5 {[%clk 0:00:01]} 46. Rd4 {[%clk 0:00:14]}  Rh8 {[%clk 0:00:01]} 47. Rd7 {[%clk 0:00:12]}  f6 {[%clk 0:00:01]} 48. Kg3 {[%clk 0:00:08]}  Nf5+ {[%clk 0:00:01]} 49. gxf5 {[%clk 0:00:08]}  Kxf5 {[%clk 0:00:02]} 50. h6 {[%clk 0:00:06]}  e5 {[%clk 0:00:02]} 51. Kf3 {[%clk 0:00:06]}  Ke6 {[%clk 0:00:02]} 52. Ra7 {[%clk 0:00:06]}  Kf5 {[%clk 0:00:03]} 53. Rxa6 {[%clk 0:00:07]}  Rd8 {[%clk 0:00:02]} 54. h7 {[%clk 0:00:07]}  Rh8 {[%clk 0:00:02]} 55. Ra7 {[%clk 0:00:08]}  Kg6 {[%clk 0:00:03]} 56. Ke4 {[%clk 0:00:08]}  Re8 {[%clk 0:00:02]} 57. Bc5 {[%clk 0:00:07]}  f5+ {[%clk 0:00:02]} 58. Kd5 {[%clk 0:00:07]}  e4 {[%clk 0:00:02]} 59. Bd4 {[%clk 0:00:08]}  e3 {[%clk 0:00:03]} 60. h8=Q {[%clk 0:00:05]}  Rxh8 {[%clk 0:00:03]} 61. Bxh8 {[%clk 0:00:06]}  e2 {[%clk 0:00:02]} 62. Re7 {[%clk 0:00:06]} 1-0


[Site "https://www.chess.com"]